[Event "FTX Crypto Cup Prelims 2021"]
[Site "Chess24"]
[Date "2021.05.18"]
[Round "2.8"]
[White "Svidler, Peter"]
[Black "Caruana, Fabiano"]
[Result "0-1"]
[ECO "C54"]
[WhiteElo "2742"]
[BlackElo "2773"]
[Annotator "ChessBase"]
[PlyCount "68"]
[EventDate "2021.05.23"]
[EventType "tourn"]
[EventCountry "NET"]
[Tiebreak "Koya+Number of black wins+Number of wins"]
[SourceTitle "playchess.com"]
[Source "ChessBase"]
[SourceQuality "1"]
[TimeControl "900+10"]

1. e4 {[%emt 0:00:00]} e5 {[%emt 0:00:00]} 2. Nf3 {[%emt 0:00:00]} Nc6 {
[%emt 0:00:00]} 3. Bc4 {[%emt 0:00:00]} Nf6 {[%emt 0:00:00]} 4. d3 {[%emt 0:00:
00]} Bc5 {[%emt 0:00:00]} 5. c3 {[%emt 0:00:00]} h6 {[%emt 0:00:03]} 6. O-O {
[%emt 0:00:16]} d6 {[%emt 0:00:07]} 7. Re1 {[%emt 0:00:49]} O-O {[%emt 0:00:06]
} 8. Nbd2 {[%emt 0:00:17]} Bb6 {[%emt 0:00:02]} 9. h3 {[%emt 0:00:10]} Ne7 {
[%emt 0:00:01]} 10. a4 {[%emt 0:00:02]} a5 {[%emt 0:00:03]} 11. Bb3 {[%emt 0:
02:42]} c6 {[%emt 0:00:04]} 12. d4 {[%emt 0:00:08]} Ng6 {[%emt 0:00:04]} 13.
Nf1 {[%emt 0:00:14]} d5 {[%emt 0:01:00]} 14. Ng3 {[%emt 0:01:36]} Nxe4 {
[%emt 0:00:40]} 15. Nxe4 {[%emt 0:00:11]} dxe4 {[%emt 0:00:02]} 16. Rxe4 {
[%emt 0:01:32]} Bf5 {[%emt 0:00:30]} 17. Re1 {[%emt 0:00:13]} e4 {[%emt 0:00:
38]} 18. Nd2 {[%emt 0:00:35]} Qh4 {[%emt 0:00:04]} 19. Re3 {[%emt 0:05:51]}
Rae8 {[%emt 0:02:02]} 20. Nf1 {[%emt 0:01:42]} Bc7 {[%emt 0:00:23]} 21. Ng3 {
[%emt 0:00:16]} Bd7 {[%emt 0:00:59]} 22. Qc2 {[%emt 0:00:24]} Bf4 {[%emt 0:00:
58]} 23. Re2 {[%emt 0:00:38]} Bxg3 {[%emt 0:00:53]} 24. fxg3 {[%emt 0:00:02]}
Qxg3 {[%emt 0:00:01]} 25. Re3 {[%emt 0:00:35]} Qh4 {[%emt 0:00:29]} 26. Bd2 {
[%emt 0:00:08]} Kh7 {[%emt 0:00:51]} 27. Be1 {[%emt 0:00:07]} Qg5 {[%emt 0:00:
29]} 28. Rg3 {[%emt 0:00:21]} Qe7 {[%emt 0:00:31]} 29. Bd2 {[%emt 0:00:08]} f5
{[%emt 0:00:09]} 30. Rf1 {[%emt 0:00:01]} Qd6 {[%emt 0:01:17]} 31. Re3 {
[%emt 0:00:06]} f4 {[%emt 0:00:10]} 32. Rxe4 {[%emt 0:00:03]} Bf5 {[%emt 0:00:
02]} 33. Rfe1 {[%emt 0:00:03]} Rxe4 {[%emt 0:00:10]} 34. Rxe4 {[%emt 0:00:14]}
f3 {[%emt 0:00:12]} 0-1

[Event "FTX Crypto Cup Prelims 2021"]
[Site "Chess24"]
[Date "2021.05.18"]
[Round "4.6"]
[White "Firouzja, Alireza"]
[Black "Nepomniachtchi, Ian"]
[Result "1/2-1/2"]
[ECO "D85"]
[WhiteElo "2703"]
[BlackElo "2778"]
[Annotator "RC"]
[PlyCount "179"]
[EventDate "2021.05.23"]
[EventType "tourn"]
[EventCountry "NET"]
[Tiebreak "Koya+Number of black wins+Number of wins"]
[SourceTitle "playchess.com"]
[Source "ChessBase"]
[SourceQuality "1"]
[TimeControl "900+10"]

1. d4 {[%emt 0:00:00]} Nf6 {[%emt 0:00:00]} 2. c4 {[%emt 0:00:00]} g6 {[%emt 0:
00:00]} 3. Nc3 {[%emt 0:00:00]} d5 {[%emt 0:00:00]} 4. cxd5 {[%emt 0:00:00]}
Nxd5 {[%emt 0:00:00]} 5. e4 {[%emt 0:00:00]} Nxc3 {[%emt 0:00:00]} 6. bxc3 {
[%emt 0:00:00]} Bg7 {[%emt 0:00:00]} 7. Be3 {[%emt 0:00:00]} c5 {[%emt 0:00:00]
} 8. Rc1 {[%emt 0:00:02]} Qa5 {[%emt 0:00:03]} 9. Qd2 {[%emt 0:00:01]} O-O {
[%emt 0:00:16]} 10. Nf3 {[%emt 0:00:03]} Bg4 {[%emt 0:00:03]} 11. Ng5 {[%emt 0:
00:05]} h6 {[%emt 0:01:08]} 12. h3 {[%emt 0:01:13]} Bd7 {[%emt 0:00:06]} 13.
Nf3 {[%emt 0:00:04]} cxd4 {[%emt 0:00:02]} 14. cxd4 {[%emt 0:00:03]} Qxd2+ {
[%emt 0:00:01]} 15. Bxd2 {[%emt 0:02:44]} e6 {[%emt 0:00:09]} 16. h4 {[%emt 0:
02:41]} Nc6 {[%emt 0:00:08]} 17. e5 {[%emt 0:02:21]} Rfd8 {[%emt 0:00:04]} 18.
Bd3 {[%emt 0:01:43]} Be8 {[%emt 0:00:15]} 19. Be3 {[%emt 0:00:09]} Rac8 {
[%emt 0:00:07]} 20. Kd2 {[%emt 0:00:38]} Nb4 {[%emt 0:00:14]} 21. Be4 {[%emt 0:
00:10]} Bc6 {[%emt 0:00:05]} 22. Bxc6 {[%emt 0:00:15]} Nxc6 {[%emt 0:00:11]}
23. Rc3 {[%emt 0:01:23]} Bf8 {[%emt 0:00:17]} 24. a3 {[%emt 0:00:54]} Rd5 {
[%emt 0:00:13]} 25. Rb1 {[%emt 0:00:13]} Rc7 {[%emt 0:00:03]} 26. g4 {[%emt 0:
00:17]} Ra5 {[%emt 0:00:20]} 27. Rbb3 {[%emt 0:00:11]} Rd7 {[%emt 0:00:18]} 28.
Ke2 {[%emt 0:01:48]} Kg7 {[%emt 0:00:07]} 29. Rd3 {[%emt 0:00:20]} Ra4 {
[%emt 0:00:15]} 30. Rbc3 {[%emt 0:00:03]} Be7 {[%emt 0:00:24]} 31. Kd1 {
[%emt 0:00:33]} Bd8 {[%emt 0:00:13]} 32. Kc2 {[%emt 0:00:08]} Bb6 {[%emt 0:00:
24]} 33. Kb3 {[%emt 0:00:14]} Ra5 {[%emt 0:00:03]} 34. Kc2 {[%emt 0:01:30]}
Rad5 {[%emt 0:01:00]} 35. Rc4 {[%emt 0:00:02]} Rc7 {[%emt 0:00:33]} 36. Kd2 {
[%emt 0:00:25]} Rb5 {[%emt 0:01:25]} 37. Ke2 {[%emt 0:00:25]} Rd7 {[%emt 0:00:
08]} 38. Rc2 {[%emt 0:00:19]} Rbd5 {[%emt 0:00:23]} 39. Rc4 {[%emt 0:00:06]} a6
{[%emt 0:00:56]} 40. Kd2 {[%emt 0:00:17]} Ba7 {[%emt 0:00:06]} 41. Ke2 {
[%emt 0:00:04]} Rd8 {[%emt 0:00:05]} 42. Kd2 {[%emt 0:00:10]} Na5 {[%emt 0:00:
30]} 43. Rcc3 {[%emt 0:00:10]} b5 {[%emt 0:00:02]} 44. Ke2 {[%emt 0:00:05]} Nc4
{[%emt 0:00:09]} 45. a4 {[%emt 0:00:05]} Nb2 {[%emt 0:00:06]} 46. Rd2 {[%emt 0:
00:13]} Nxa4 {[%emt 0:00:02]} 47. Rc6 {[%emt 0:00:01]} a5 {[%emt 0:01:09]} 48.
Ra2 {[%emt 0:00:12]} Rb8 {[%emt 0:00:45]} 49. Kd3 {[%emt 0:00:37]} Bb6 {
[%emt 0:00:31]} 50. Ke4 {[%emt 0:00:13]} Rb7 {[%emt 0:00:23]} 51. h5 {[%emt 0:
00:02]} g5 {[%emt 0:00:03]} 52. Ne1 {[%emt 0:00:08]} Rc7 {[%emt 0:00:24]} 53.
Rxc7 {[%emt 0:00:02]} Bxc7 {[%emt 0:00:00]} 54. Bd2 {[%emt 0:00:02]} Bb6 {
[%emt 0:00:16]} 55. Nc2 {[%emt 0:00:17]} Rd7 {[%emt 0:00:15]} 56. Ra3 {[%emt 0:
00:14]} Rd8 {[%emt 0:00:41]} 57. f4 {[%emt 0:00:24]} gxf4 {[%emt 0:00:02]} 58.
Bxf4 {[%emt 0:00:02]} Rc8 {[%emt 0:00:08]} 59. g5 {[%emt 0:00:15]} hxg5 {
[%emt 0:00:16]} 60. Bxg5 {[%emt 0:00:02]} Rxc2 {[%emt 0:00:49]} 61. Rg3 {
[%emt 0:00:06]} Rh2 {[%emt 0:01:17]} 62. Bf6+ {[%emt 0:00:22]} Kf8 {[%emt 0:00:
21]} 63. h6 {[%emt 0:00:01]} b4 {[%emt 0:00:08]} 64. Rg4 {[%emt 0:00:13]} Nc3+
{[%emt 0:00:08]} 65. Kf3 {[%emt 0:00:13]} Nd5 {[%emt 0:00:09]} 66. Bh4 {
[%emt 0:00:01]} Bxd4 {[%emt 0:00:59]} 67. h7 {[%emt 0:00:17]} Rxh4 {[%emt 0:00:
03]} 68. Rxh4 {[%emt 0:00:05]} Bxe5 {[%emt 0:00:01]} 69. h8=Q+ {[%emt 0:00:11]}
Bxh8 {[%emt 0:00:01]} 70. Rxh8+ {[%emt 0:00:00]} Ke7 {[%emt 0:00:00]} 71. Ra8 {
[%emt 0:00:03]} Kd6 {[%emt 0:00:16]} 72. Rxa5 {[%emt 0:00:02]} f5 {[%emt 0:00:
01]} 73. Ke2 {[%emt 0:00:11]} Ke5 {[%emt 0:00:16]} 74. Kd3 {[%emt 0:00:07]} f4
{[%emt 0:00:02]} 75. Ra8 {[%emt 0:00:10]} Ne7 {[%emt 0:01:17]} 76. Rb8 {
[%emt 0:00:30]} Nc6 {[%emt 0:00:23]} 77. Rb5+ {[%emt 0:00:17]} Kd6 {[%emt 0:00:
02]} 78. Ke4 {[%emt 0:00:12]} e5 {[%emt 0:00:02]} 79. Rd5+ {[%emt 0:00:11]} Ke6
{[%emt 0:00:34]} 80. Rb5 {[%emt 0:00:05]} Kd6 {[%emt 0:00:23]} 81. Rd5+ {
[%emt 0:00:03]} Kc7 {[%emt 0:00:17]} 82. Rb5 {[%emt 0:00:25]} f3 {[%emt 0:00:
03]} 83. Ke3 {[%emt 0:00:09]} Kd6 {[%emt 0:00:16]} 84. Kf2 {[%emt 0:00:09]} e4
{[%emt 0:00:39]} 85. Ke3 {[%emt 0:00:07]} Ne7 {[%emt 0:00:21]} 86. Rxb4 {
[%emt 0:00:11]} Nd5+ {[%emt 0:00:03]} 87. Kxe4 {[%emt 0:00:02]} f2 {[%emt 0:00:
01]} 88. Rb1 {[%emt 0:00:01]} Nc3+ {[%emt 0:00:01]} 89. Kf3 {[%emt 0:00:02]}
Nxb1 {[%emt 0:00:00]} 90. Kxf2 {[%emt 0:00:01]} 1/2-1/2

[Event "FTX Crypto Cup Prelims 2021"]
[Site "Chess24"]
[Date "2021.05.18"]
[Round "6.6"]
[White "Svidler, Peter"]
[Black "So, Wesley"]
[Result "1/2-1/2"]
[ECO "A13"]
[WhiteElo "2742"]
[BlackElo "2741"]
[Annotator "RC"]
[PlyCount "81"]
[EventDate "2021.05.23"]
[EventType "tourn"]
[EventCountry "NET"]
[Tiebreak "Koya+Number of black wins+Number of wins"]
[SourceTitle "playchess.com"]
[Source "ChessBase"]
[SourceQuality "1"]
[TimeControl "900+10"]

1. Nf3 {[%emt 0:00:00]} d5 {[%emt 0:00:00]} 2. c4 {[%emt 0:00:00]} e6 {[%emt 0:
00:00]} 3. e3 {[%emt 0:00:37]} Nf6 {[%emt 0:00:20]} 4. b3 {[%emt 0:00:02]} Bd6
{[%emt 0:00:10]} 5. Bb2 {[%emt 0:00:02]} O-O {[%emt 0:00:03]} 6. Be2 {[%emt 0:
00:41]} c5 {[%emt 0:00:18]} 7. O-O {[%emt 0:00:33]} b6 {[%emt 0:00:08]} 8. cxd5
{[%emt 0:00:39]} Nxd5 {[%emt 0:00:00]} 9. d4 {[%emt 0:00:13]} Bb7 {[%emt 0:00:
03]} 10. Nbd2 {[%emt 0:01:03]} Nd7 {[%emt 0:00:54]} 11. Nc4 {[%emt 0:02:06]}
Be7 {[%emt 0:00:19]} 12. Rc1 {[%emt 0:00:06]} Rc8 {[%emt 0:00:05]} 13. dxc5 {
[%emt 0:02:06]} Nxc5 {[%emt 0:02:04]} 14. Nd4 {[%emt 0:02:30]} Bf6 {[%emt 0:01:
14]} 15. Bf3 {[%emt 0:00:04]} Ba6 {[%emt 0:00:43]} 16. Qd2 {[%emt 0:00:50]} Qd7
{[%emt 0:01:20]} 17. Rfd1 {[%emt 0:01:56]} Rfd8 {[%emt 0:00:37]} 18. Nf5 {
[%emt 0:01:21]} exf5 {[%emt 0:02:36]} 19. Bxd5 {[%emt 0:00:12]} Qe7 {[%emt 0:
00:21]} 20. Bxf6 {[%emt 0:00:22]} Qxf6 {[%emt 0:00:00]} 21. Qd4 {[%emt 0:00:51]
} Qxd4 {[%emt 0:00:45]} 22. Rxd4 {[%emt 0:00:02]} Bxc4 {[%emt 0:00:05]} 23.
Bxc4 {[%emt 0:00:56]} Rxd4 {[%emt 0:00:24]} 24. exd4 {[%emt 0:00:01]} Ne6 {
[%emt 0:00:02]} 25. d5 {[%emt 0:00:24]} Nc5 {[%emt 0:00:04]} 26. Bb5 {[%emt 0:
00:20]} Rd8 {[%emt 0:00:08]} 27. b4 {[%emt 0:00:08]} Ne4 {[%emt 0:00:08]} 28.
Rc7 {[%emt 0:00:17]} g6 {[%emt 0:00:23]} 29. Bc6 {[%emt 0:00:07]} Nc3 {[%emt 0:
00:14]} 30. Rxa7 {[%emt 0:00:07]} Nxd5 {[%emt 0:00:02]} 31. Bxd5 {[%emt 0:00:
03]} Rxd5 {[%emt 0:00:00]} 32. g3 {[%emt 0:00:04]} f4 {[%emt 0:00:24]} 33. gxf4
{[%emt 0:00:31]} Rd4 {[%emt 0:00:18]} 34. b5 {[%emt 0:00:01]} Rb4 {[%emt 0:00:
10]} 35. a4 {[%emt 0:00:06]} Rxf4 {[%emt 0:00:02]} 36. Ra6 {[%emt 0:00:13]} h5
{[%emt 0:00:08]} 37. Rxb6 {[%emt 0:00:06]} Rxa4 {[%emt 0:00:02]} 38. Rc6 {
[%emt 0:00:04]} Rb4 {[%emt 0:00:08]} 39. b6 {[%emt 0:00:02]} h4 {[%emt 0:00:25]
} 40. Kg2 {[%emt 0:00:02]} Rb3 {[%emt 0:00:08]} 41. h3 {[%emt 0:00:02]} 1/2-1/2

[Event "FTX Crypto Cup Prelims 2021"]
[Site "Chess24"]
[Date "2021.05.18"]
[Round "9.6"]
[White "Ding, Liren"]
[Black "Firouzja, Alireza"]
[Result "1/2-1/2"]
[ECO "A90"]
[WhiteElo "2836"]
[BlackElo "2703"]
[Annotator "RC"]
[PlyCount "76"]
[EventDate "2021.05.23"]
[EventType "tourn"]
[EventCountry "NET"]
[Tiebreak "Koya+Number of black wins+Number of wins"]
[SourceTitle "playchess.com"]
[Source "ChessBase"]
[SourceQuality "1"]
[TimeControl "900+10"]

1. d4 {[%emt 0:00:00]} f5 {[%emt 0:00:00]} 2. g3 {[%emt 0:00:00]} Nf6 {[%emt 0:
00:00]} 3. Bg2 {[%emt 0:00:00]} e6 {[%emt 0:00:00]} 4. Nf3 {[%emt 0:00:03]} d5
{[%emt 0:00:04]} 5. c4 {[%emt 0:00:11]} c6 {[%emt 0:00:03]} 6. Bf4 {[%emt 0:00:
14]} Be7 {[%emt 0:00:48]} 7. O-O {[%emt 0:00:31]} O-O {[%emt 0:00:18]} 8. Nbd2
{[%emt 0:00:26]} Ne4 {[%emt 0:01:18]} 9. Rc1 {[%emt 0:03:30]} Nd7 {[%emt 0:00:
15]} 10. Nxe4 {[%emt 0:01:04]} fxe4 {[%emt 0:00:26]} 11. Ne5 {[%emt 0:00:01]}
Bg5 {[%emt 0:00:21]} 12. Bxg5 {[%emt 0:00:50]} Qxg5 {[%emt 0:00:03]} 13. f4 {
[%emt 0:00:00]} Qe7 {[%emt 0:04:32]} 14. Qb3 {[%emt 0:00:27]} Nxe5 {[%emt 0:01:
49]} 15. fxe5 {[%emt 0:01:40]} Rxf1+ {[%emt 0:00:17]} 16. Bxf1 {[%emt 0:01:17]}
a5 {[%emt 0:02:20]} 17. e3 {[%emt 0:01:12]} Qb4 {[%emt 0:01:04]} 18. Qc2 {
[%emt 0:00:12]} Qe7 {[%emt 0:00:15]} 19. Be2 {[%emt 0:00:23]} Bd7 {[%emt 0:00:
04]} 20. c5 {[%emt 0:00:05]} Qg5 {[%emt 0:00:21]} 21. Qd2 {[%emt 0:00:28]} Be8
{[%emt 0:00:29]} 22. Rf1 {[%emt 0:00:26]} Bh5 {[%emt 0:00:18]} 23. Bxh5 {
[%emt 0:01:22]} Qxh5 {[%emt 0:00:00]} 24. Qf2 {[%emt 0:00:01]} a4 {[%emt 0:00:
40]} 25. Kg2 {[%emt 0:00:20]} h6 {[%emt 0:00:09]} 26. h3 {[%emt 0:00:01]} Rb8 {
[%emt 0:00:06]} 27. g4 {[%emt 0:00:12]} Qg6 {[%emt 0:00:06]} 28. Kg3 {[%emt 0:
00:38]} Qe8 {[%emt 0:01:10]} 29. Qc2 {[%emt 0:00:59]} Ra8 {[%emt 0:00:10]} 30.
Qd2 {[%emt 0:00:15]} Qe7 {[%emt 0:00:06]} 31. h4 {[%emt 0:00:48]} Rf8 {[%emt 0:
00:48]} 32. Rxf8+ {[%emt 0:00:02]} Qxf8 {[%emt 0:00:00]} 33. Qf2 {[%emt 0:00:
00]} Qd8 {[%emt 0:00:05]} 34. h5 {[%emt 0:00:24]} Qe7 {[%emt 0:00:18]} 35. Qc2
{[%emt 0:00:12]} Qf8 {[%emt 0:00:09]} 36. Qf2 {[%emt 0:00:01]} Qe7 {[%emt 0:00:
02]} 37. Qc2 {[%emt 0:00:02]} Qf8 {[%emt 0:00:01]} 38. Qf2 {[%emt 0:00:00]} Qe7
{[%emt 0:00:01]} 1/2-1/2

[Event "FTX Crypto Cup Prelims 2021"]
[Site "Chess24"]
[Date "2021.05.18"]
[Round "9.7"]
[White "Grischuk, Alexander"]
[Black "Nakamura, Hikaru"]
[Result "1/2-1/2"]
[ECO "C67"]
[WhiteElo "2784"]
[BlackElo "2829"]
[Annotator "ChessBase"]
[PlyCount "69"]
[EventDate "2021.05.23"]
[EventType "tourn"]
[EventCountry "NET"]
[Tiebreak "Koya+Number of black wins+Number of wins"]
[SourceTitle "playchess.com"]
[Source "ChessBase"]
[SourceQuality "1"]
[TimeControl "900+10"]

1. e4 {[%emt 0:00:00]} e5 {[%emt 0:00:00]} 2. Nf3 {[%emt 0:00:00]} Nc6 {
[%emt 0:00:00]} 3. Bb5 {[%emt 0:00:00]} Nf6 {[%emt 0:00:00]} 4. O-O {[%emt 0:
00:00]} Nxe4 {[%emt 0:00:00]} 5. d4 {[%emt 0:00:00]} Nd6 {[%emt 0:00:00]} 6.
Bxc6 {[%emt 0:00:00]} dxc6 {[%emt 0:00:00]} 7. dxe5 {[%emt 0:00:00]} Nf5 {
[%emt 0:00:00]} 8. Qxd8+ {[%emt 0:00:00]} Kxd8 {[%emt 0:00:00]} 9. Nc3 {
[%emt 0:00:00]} Bd7 {[%emt 0:00:00]} 10. h3 {[%emt 0:00:07]} h6 {[%emt 0:00:14]
} 11. b3 {[%emt 0:00:03]} b6 {[%emt 0:00:11]} 12. Bb2 {[%emt 0:00:04]} Kc8 {
[%emt 0:00:12]} 13. Rad1 {[%emt 0:00:32]} a5 {[%emt 0:01:48]} 14. Rd3 {[%emt 0:
01:27]} Be7 {[%emt 0:00:20]} 15. Rfd1 {[%emt 0:05:17]} Be6 {[%emt 0:02:41]} 16.
g4 {[%emt 0:01:58]} Nh4 {[%emt 0:00:02]} 17. Nxh4 {[%emt 0:01:03]} Bxh4 {
[%emt 0:00:00]} 18. f4 {[%emt 0:00:02]} g6 {[%emt 0:00:30]} 19. a4 {[%emt 0:01:
01]} Kb7 {[%emt 0:02:28]} 20. Ne2 {[%emt 0:02:01]} c5 {[%emt 0:00:28]} 21. c4 {
[%emt 0:00:10]} h5 {[%emt 0:00:39]} 22. g5 {[%emt 0:00:45]} Bf5 {[%emt 0:00:03]
} 23. Re3 {[%emt 0:01:56]} Rhd8 {[%emt 0:00:14]} 24. Rd5 {[%emt 0:00:02]} Be1 {
[%emt 0:01:02]} 25. Bc3 {[%emt 0:00:17]} Bxc3 {[%emt 0:00:51]} 26. Nxc3 {
[%emt 0:01:13]} c6 {[%emt 0:00:09]} 27. Rxd8 {[%emt 0:00:25]} Rxd8 {[%emt 0:00:
00]} 28. Ne4 {[%emt 0:00:08]} Rd1+ {[%emt 0:00:57]} 29. Kg2 {[%emt 0:00:29]}
Kc7 {[%emt 0:00:17]} 30. Nd6 {[%emt 0:00:03]} Be6 {[%emt 0:00:01]} 31. h4 {
[%emt 0:00:05]} Rd2+ {[%emt 0:00:08]} 32. Kg3 {[%emt 0:00:04]} Rd1 {[%emt 0:00:
01]} 33. Kg2 {[%emt 0:00:04]} Rd2+ {[%emt 0:00:07]} 34. Kg3 {[%emt 0:00:07]}
Rd1 {[%emt 0:00:01]} 35. Kg2 {[%emt 0:01:10]} 1/2-1/2

[Event "FTX Crypto Cup Prelims 2021"]
[Site "Chess24"]
[Date "2021.05.18"]
[Round "10.3"]
[White "Firouzja, Alireza"]
[Black "Grischuk, Alexander"]
[Result "0-1"]
[ECO "B45"]
[WhiteElo "2703"]
[BlackElo "2784"]
[Annotator "ChessBase"]
[PlyCount "106"]
[EventDate "2021.05.23"]
[EventType "tourn"]
[EventCountry "NET"]
[Tiebreak "Koya+Number of black wins+Number of wins"]
[SourceTitle "playchess.com"]
[Source "ChessBase"]
[SourceQuality "1"]
[TimeControl "900+10"]

1. e4 {[%emt 0:00:00]} c5 {[%emt 0:00:00]} 2. Nf3 {[%emt 0:00:00]} e6 {[%emt 0:
00:00]} 3. d4 {[%emt 0:00:03]} cxd4 {[%emt 0:00:00]} 4. Nxd4 {[%emt 0:00:00]}
Nf6 {[%emt 0:00:00]} 5. Nc3 {[%emt 0:00:03]} Nc6 {[%emt 0:00:00]} 6. Be2 {
[%emt 0:00:17]} Bb4 {[%emt 0:00:00]} 7. O-O {[%emt 0:00:10]} Bxc3 {[%emt 0:00:
00]} 8. bxc3 {[%emt 0:00:02]} Nxe4 {[%emt 0:00:00]} 9. Qd3 {[%emt 0:00:15]} d5
{[%emt 0:00:24]} 10. Ba3 {[%emt 0:00:41]} Nd6 {[%emt 0:09:34]} 11. Qg3 {
[%emt 0:03:33]} Nxd4 {[%emt 0:00:05]} 12. cxd4 {[%emt 0:00:01]} Nf5 {[%emt 0:
00:01]} 13. Qh3 {[%emt 0:01:15]} Bd7 {[%emt 0:04:11]} 14. Bd3 {[%emt 0:02:05]}
Qf6 {[%emt 0:00:04]} 15. Rab1 {[%emt 0:01:51]} b6 {[%emt 0:00:01]} 16. Rfe1 {
[%emt 0:01:16]} Ne7 {[%emt 0:00:11]} 17. Bd6 {[%emt 0:00:42]} Ng6 {[%emt 0:00:
36]} 18. Qe3 {[%emt 0:01:34]} Rd8 {[%emt 0:01:10]} 19. c3 {[%emt 0:01:06]} Bc6
{[%emt 0:00:21]} 20. Ba3 {[%emt 0:00:28]} Rd7 {[%emt 0:00:50]} 21. Qg3 {
[%emt 0:00:19]} Nf4 {[%emt 0:00:39]} 22. Bf1 {[%emt 0:00:10]} Ng6 {[%emt 0:00:
11]} 23. Bd3 {[%emt 0:01:05]} Nf4 {[%emt 0:00:01]} 24. Bc2 {[%emt 0:00:01]} g5
{[%emt 0:00:09]} 25. Bc1 {[%emt 0:01:02]} h6 {[%emt 0:00:20]} 26. h4 {[%emt 0:
00:05]} Rg8 {[%emt 0:00:09]} 27. Bd2 {[%emt 0:00:27]} Rc7 {[%emt 0:00:19]} 28.
Re3 {[%emt 0:00:40]} Kd7 {[%emt 0:00:01]} 29. Rbe1 {[%emt 0:00:13]} Kc8 {
[%emt 0:00:18]} 30. Rf3 {[%emt 0:00:11]} Qg7 {[%emt 0:00:05]} 31. Bc1 {[%emt 0:
00:24]} Bb5 {[%emt 0:00:07]} 32. Bd1 {[%emt 0:00:09]} Nh5 {[%emt 0:00:21]} 33.
Qe5 {[%emt 0:00:11]} gxh4 {[%emt 0:00:11]} 34. Qxg7 {[%emt 0:00:05]} Nxg7 {
[%emt 0:00:02]} 35. Bxh6 {[%emt 0:00:10]} Nf5 {[%emt 0:00:03]} 36. Bf4 {
[%emt 0:00:00]} Rc6 {[%emt 0:00:06]} 37. Bc2 {[%emt 0:00:05]} Nxd4 {[%emt 0:00:
05]} 38. cxd4 {[%emt 0:00:02]} Rxc2 {[%emt 0:00:00]} 39. Be5 {[%emt 0:00:04]}
f5 {[%emt 0:00:10]} 40. Bf6 {[%emt 0:00:36]} Rg6 {[%emt 0:00:12]} 41. Bxh4 {
[%emt 0:00:15]} Rxa2 {[%emt 0:00:02]} 42. Rh3 {[%emt 0:00:03]} Re2 {[%emt 0:00:
42]} 43. Ra1 {[%emt 0:00:06]} Kb7 {[%emt 0:00:02]} 44. Bg3 {[%emt 0:00:04]} Rg7
{[%emt 0:00:12]} 45. Rh8 {[%emt 0:00:03]} Rxg3 {[%emt 0:00:21]} 46. fxg3 {
[%emt 0:00:03]} a5 {[%emt 0:00:08]} 47. g4 {[%emt 0:00:22]} fxg4 {[%emt 0:00:
04]} 48. Rg8 {[%emt 0:00:01]} Re4 {[%emt 0:00:09]} 49. Rd1 {[%emt 0:00:17]} Bc4
{[%emt 0:00:17]} 50. Rg7+ {[%emt 0:00:03]} Kc6 {[%emt 0:00:09]} 51. Rg8 {
[%emt 0:00:00]} a4 {[%emt 0:00:05]} 52. Ra8 {[%emt 0:00:08]} Kb5 {[%emt 0:00:
07]} 53. Kf2 {[%emt 0:00:17]} Kb4 {[%emt 0:00:07]} 0-1

[Event "FTX Crypto Cup Prelims 2021"]
[Site "Chess24"]
[Date "2021.05.18"]
[Round "11.6"]
[White "Grischuk, Alexander"]
[Black "Svidler, Peter"]
[Result "1-0"]
[ECO "E73"]
[WhiteElo "2784"]
[BlackElo "2742"]
[Annotator "RC"]
[PlyCount "63"]
[EventDate "2021.05.23"]
[EventType "tourn"]
[EventCountry "NET"]
[Tiebreak "Koya+Number of black wins+Number of wins"]
[SourceTitle "playchess.com"]
[Source "ChessBase"]
[SourceQuality "1"]
[TimeControl "900+10"]

1. d4 {[%emt 0:00:00]} Nf6 {[%emt 0:00:00]} 2. c4 {[%emt 0:00:00]} g6 {[%emt 0:
00:00]} 3. h4 {[%emt 0:00:00]} Bg7 {[%emt 0:01:25]} 4. Nc3 {[%emt 0:00:00]} O-O
{[%emt 0:00:03]} 5. e4 {[%emt 0:00:00]} d6 {[%emt 0:00:01]} 6. Be2 {[%emt 0:00:
00]} h5 {[%emt 0:01:04]} 7. Nf3 {[%emt 0:00:15]} c5 {[%emt 0:00:35]} 8. d5 {
[%emt 0:00:15]} e6 {[%emt 0:00:04]} 9. Bf4 {[%emt 0:03:55]} Re8 {[%emt 0:01:10]
} 10. Ng5 {[%emt 0:01:15]} exd5 {[%emt 0:01:07]} 11. exd5 {[%emt 0:00:01]} a6 {
[%emt 0:00:44]} 12. O-O {[%emt 0:00:11]} Nbd7 {[%emt 0:00:58]} 13. Bxd6 {
[%emt 0:02:31]} Qb6 {[%emt 0:00:04]} 14. Bf4 {[%emt 0:00:01]} Qxb2 {[%emt 0:00:
03]} 15. Rc1 {[%emt 0:00:41]} b5 {[%emt 0:01:39]} 16. cxb5 {[%emt 0:00:23]}
axb5 {[%emt 0:00:00]} 17. Bxb5 {[%emt 0:00:17]} Ra3 {[%emt 0:00:25]} 18. Qd2 {
[%emt 0:03:29]} Qb4 {[%emt 0:01:17]} 19. Bc6 {[%emt 0:00:18]} Ng4 {[%emt 0:01:
36]} 20. Nb5 {[%emt 0:01:29]} Qxd2 {[%emt 0:00:12]} 21. Bxd2 {[%emt 0:00:00]}
Rxa2 {[%emt 0:00:00]} 22. Bf4 {[%emt 0:00:26]} Ree2 {[%emt 0:00:28]} 23. Bg3 {
[%emt 0:00:01]} Ne3 {[%emt 0:00:51]} 24. Rfe1 {[%emt 0:02:34]} Nf5 {[%emt 0:00:
02]} 25. Rxe2 {[%emt 0:00:02]} Rxe2 {[%emt 0:00:01]} 26. Na7 {[%emt 0:00:21]}
Nxg3 {[%emt 0:01:31]} 27. Nxc8 {[%emt 0:00:09]} Bd4 {[%emt 0:00:22]} 28. Bxd7 {
[%emt 0:00:07]} Rxf2 {[%emt 0:00:08]} 29. Kh2 {[%emt 0:00:03]} Be5 {[%emt 0:00:
42]} 30. Re1 {[%emt 0:00:45]} Ne2+ {[%emt 0:00:13]} 31. Kh1 {[%emt 0:00:04]}
Bg3 {[%emt 0:02:12]} 32. Nh3 {[%emt 0:00:27]} 1-0